bitfinex/quotes_BTCUSD_20250904
["timestamp","ask_amount","ask_price","bid_price","bid_amount"]
[1756996551964,1.43992497,110230.0,110220.0,0.51781226]
[1756996552205,1.43992497,110230.0,110220.0,0.8915057]
[1756996552407,1.43992497,110230.0,110220.0,1.60519914]
[1756996552784,1.43992497,110230.0,110220.0,1.35680315]
[1756996553010,1.43992497,110230.0,110220.0,1.51328315]
[1756996553381,1.43992497,110230.0,110220.0,1.49928315]
[1756996553575,1.43992497,110230.0,110220.0,1.14123723]
[1756996553772,1.43992497,110230.0,110220.0,1.23915322]
[1756996554216,1.25345054,110230.0,110220.0,1.08267322]
[1756996554393,1.25345054,110230.0,110220.0,1.23911322]
[1756996554612,1.25345054,110230.0,110220.0,1.23311322]
[1756996554759,1.25345054,110230.0,110220.0,0.59541627]
[1756996554964,1.43488934,110230.0,110220.0,0.75685627]
[1756996555160,1.43488934,110230.0,110220.0,0.72959344]
[1756996555415,1.43488934,110230.0,110220.0,0.73459344]
[1756996556173,1.25345054,110230.0,110220.0,0.73459344]
[1756996556893,1.43488934,110230.0,110220.0,0.73459344]
[1756996557094,1.25345054,110230.0,110220.0,0.73459344]
[1756996557704,1.25345054,110230.0,110220.0,1.1239344]
[1756996557911,1.25345054,110230.0,110220.0,1.21585039]
[1756996558327,1.25345054,110230.0,110220.0,0.82650943]
[1756996558530,1.25345054,110230.0,110220.0,1.21585039]
[1756996561188,1.25345054,110230.0,110220.0,1.28575039]
[1756996562428,1.25345054,110230.0,110220.0,1.71301193]
[1756996563005,1.25345054,110230.0,110220.0,1.73395075]
[1756996563900,1.25345054,110230.0,110220.0,1.57751075]
[1756996564146,1.25345054,110230.0,110220.0,1.55657193]
[1756996564358,1.25345054,110230.0,110220.0,1.71297193]
[1756996565368,1.25345054,110230.0,110220.0,1.31297193]
[1756996567369,1.25345054,110230.0,110220.0,1.59671075]
[1756996569088,1.25345054,110230.0,110220.0,1.20736979]
[1756996569292,1.25345054,110230.0,110220.0,1.84031075]
[1756996569459,1.25345054,110230.0,110220.0,1.90583193]
[1756996570350,1.25345054,110230.0,110220.0,1.34947193]
[1756996570554,1.25345054,110230.0,110220.0,1.00947193]
[1756996570772,1.25345054,110230.0,110220.0,1.17649097]
[1756996571138,1.25345054,110230.0,110220.0,0.77649097]
[1756996571345,1.25345054,110230.0,110220.0,1.11649097]
[1756996571586,1.25345054,110230.0,110220.0,1.50583193]
[1756996572953,1.25543054,110230.0,110220.0,0.69733097]
[1756996573159,1.25543054,110230.0,110220.0,0.73447344]
[1756996573525,1.25345054,110230.0,110220.0,0.73447344]
[1756996573725,1.25345054,110230.0,110220.0,1.1238144]
[1756996573853,1.25345054,110230.0,110220.0,1.21573039]
[1756996574052,1.25345054,110230.0,110220.0,0.82638943]
[1756996574250,1.25345054,110230.0,110220.0,1.21573039]
[1756996574739,1.25345054,110230.0,110220.0,1.21073039]
[1756996574943,1.25345054,110230.0,110220.0,1.27757039]
[1756996575320,1.25345054,110230.0,110220.0,1.28057039]
[1756996575851,1.25345054,110230.0,110220.0,1.28657039]
[1756996575999,1.25345054,110230.0,110220.0,1.27857039]
[1756996576196,1.25345054,110230.0,110220.0,1.11625039]
[1756996576401,1.25543054,110230.0,110220.0,0.64399344]
[1756996576605,1.43686934,110230.0,110220.0,0.80313344]
[1756996577369,1.43488934,110230.0,110220.0,0.80809344]
[1756996577579,1.25345054,110230.0,110220.0,1.1974344]
[1756996577804,1.25345054,110230.0,110220.0,0.64377344]
[1756996578012,1.43686934,110230.0,110220.0,0.78613344]
[1756996578236,1.43686934,110230.0,110220.0,0.38951817]
[1756996578460,1.43686934,110230.0,110220.0,0.54583817]
[1756996578669,1.43686934,110230.0,110220.0,0.39651817]
[1756996578877,1.43686934,110230.0,110220.0,0.73429344]
[1756996579079,1.43686934,110230.0,110220.0,0.38951817]
[1756996579512,1.43686934,110230.0,110220.0,0.38751817]
[1756996579716,1.43686934,110230.0,110220.0,0.39451817]
[1756996579938,1.43686934,110230.0,110220.0,0.353]
[1756996579939,1.59453934,110230.0,110220.0,0.353]
[1756996580112,1.9838803,110230.0,110220.0,0.50932]
[1756996580273,1.9838803,110230.0,110220.0,0.50332]
[1756996580612,1.59453934,110230.0,110220.0,0.50332]
[1756996581087,1.59453934,110230.0,110220.0,0.49632]
[1756996581417,1.59453934,110230.0,110220.0,0.50232]
[1756996581624,1.59453934,110230.0,110220.0,0.50228]
[1756996581935,1.59449934,110230.0,110220.0,0.50228]
[1756996582336,1.59449934,110230.0,110220.0,0.50828]
[1756996582760,1.43821934,110230.0,110220.0,0.50828]
[1756996582963,1.59314934,110230.0,110220.0,0.50228]
[1756996583367,1.59314934,110230.0,110220.0,0.50728]
[1756996584137,1.40973054,110230.0,110220.0,0.69369527]
[1756996584343,1.59116934,110230.0,110220.0,0.69369527]
[1756996584538,1.43488934,110230.0,110220.0,0.53741527]
[1756996584729,1.43686934,110230.0,110220.0,0.351]
[1756996584975,1.43686934,110230.0,110220.0,0.50728]
[1756996585637,1.43686934,110230.0,110220.0,0.67773527]
[1756996585949,1.43686934,110230.0,110220.0,0.50428]
[1756996586170,1.43686934,110230.0,110220.0,0.68573527]
[1756996586372,1.43686934,110230.0,110220.0,0.67976527]
[1756996586574,1.43686934,110230.0,110220.0,0.68869527]
[1756996586779,1.43488934,110230.0,110220.0,0.69369527]
[1756996586988,1.43686934,110230.0,110220.0,0.69369527]
[1756996587838,1.25345054,110230.0,110220.0,1.08303623]
[1756996589294,1.25345054,110230.0,110220.0,0.69369527]
[1756996589877,1.25345054,110230.0,110220.0,1.08303623]
[1756996590532,1.25345054,110230.0,110220.0,0.69369527]
[1756996590734,1.25345054,110230.0,110220.0,1.21649901]
[1756996593084,1.25345054,110230.0,110220.0,0.82715805]
[1756996593311,1.25345054,110230.0,110220.0,1.21649901]
[1756996593749,1.25345054,110230.0,110220.0,1.06021901]
[1756996593953,1.25345054,110230.0,110220.0,1.21645901]
[1756996596430,1.25345054,110230.0,110220.0,1.28171647]
[1756996596788,1.25345054,110230.0,110220.0,1.76847625]
[1756996596997,0.65593295,110230.0,110220.0,1.70321879]
[1756996597198,0.47755748,110230.0,110220.0,1.78047659]
[1756996597525,0.27743307,110230.0,110220.0,3.23765625]
[1756996597690,0.27743307,110230.0,110220.0,3.23761625]
[1756996597891,0.27743307,110230.0,110220.0,3.23961625]
[1756996598114,0.27743307,110230.0,110220.0,3.25261625]
[1756996598293,0.27743307,110230.0,110220.0,3.24461625]
[1756996598682,0.2630554,110230.0,110220.0,3.09941625]
[1756996599090,0.0002,110240.0,110230.0,0.54237762]
[1756996599301,0.0002,110240.0,110230.0,0.93683361]
[1756996599527,0.0002,110240.0,110230.0,1.33888361]
[1756996599739,0.0002,110240.0,110230.0,2.11691797]
[1756996599946,0.0002,110250.0,110240.0,0.52142235]
[1756996600162,0.0002,110250.0,110240.0,1.6270727]
[1756996600402,0.0002,110250.0,110240.0,1.6291227]
[1756996600610,0.0002,110250.0,110240.0,1.63275672]
[1756996601155,0.0002,110250.0,110240.0,1.65369554]
[1756996601366,0.0002,110250.0,110240.0,2.05369554]
[1756996601564,0.0002,110250.0,110240.0,1.90649554]
[1756996601771,0.0002,110250.0,110240.0,2.06269554]
[1756996601947,0.0002,110250.0,110240.0,2.07369554]
[1756996603046,0.0002,110250.0,110240.0,2.07365554]
[1756996603261,0.0002,110260.0,110250.0,0.54234471]
[1756996603482,0.0002,110260.0,110250.0,1.30893788]
[1756996603699,0.0002,110260.0,110250.0,1.10482788]
[1756996603904,0.0002,110260.0,110250.0,1.31098788]
[1756996604103,0.0002,110260.0,110250.0,1.71098788]
[1756996604525,0.0002,110260.0,110250.0,1.71898788]
[1756996604743,0.0002,110260.0,110250.0,1.56282788]
[1756996604923,0.0002,110260.0,110250.0,1.71898788]
[1756996605153,0.0002,110260.0,110250.0,1.72798788]
[1756996605561,0.0002,110260.0,110250.0,1.22441157]
[1756996605764,0.0002,110260.0,110250.0,1.76958875]
[1756996606402,0.0002,110260.0,110250.0,1.76954875]
[1756996606605,0.0002,110260.0,110250.0,1.71954875]
[1756996606810,0.0002,110260.0,110250.0,1.76954875]
[1756996607045,0.0002,110260.0,110250.0,1.71954875]
[1756996607263,0.0002,110260.0,110250.0,1.76954875]
[1756996607886,0.0002,110260.0,110250.0,1.61342875]
[1756996608098,0.0002,110260.0,110250.0,1.76954875]
[1756996608667,0.0002,110260.0,110250.0,2.03234875]
[1756996610014,0.0002,110260.0,110250.0,1.87622875]
[1756996610231,0.0002,110260.0,110250.0,2.03234875]
[1756996610636,0.0002,110260.0,110250.0,2.03598226]
[1756996610881,0.0002,110270.0,110260.0,0.52138944]
[1756996611107,0.00067027,110270.0,110260.0,1.31121791]
[1756996611319,0.00067027,110270.0,110260.0,1.25133143]
[1756996611522,0.00067027,110270.0,110260.0,1.93253792]
[1756996611940,0.00067027,110270.0,110260.0,1.7870512]
[1756996612140,0.00067027,110270.0,110260.0,1.9511712]
[1756996612347,0.00067027,110270.0,110260.0,1.34594995]
[1756996612583,0.00067027,110270.0,110260.0,1.9511712]
[1756996613119,0.00067027,110270.0,110260.0,1.98796969]
[1756996613343,0.00067027,110270.0,110260.0,2.06436969]
[1756996616016,0.0002,110280.0,110270.0,0.54231181]
[1756996616250,0.00034102,110280.0,110270.0,1.39862905]
[1756996616481,0.00034102,110280.0,110270.0,1.40067905]
[1756996616703,0.00034102,110280.0,110270.0,1.80431185]
[1756996617146,0.00034102,110280.0,110270.0,1.65423185]
[1756996617365,0.00034102,110280.0,110270.0,1.81731185]
[1756996619076,0.00034102,110280.0,110270.0,1.64029303]
[1756996619266,0.00034102,110280.0,110270.0,1.79637303]
[1756996619682,0.00034102,110280.0,110270.0,1.93771706]
[1756996620355,0.00034102,110280.0,110270.0,1.78163706]
[1756996620562,0.00034102,110280.0,110270.0,1.40835442]
[1756996620769,0.00034102,110280.0,110270.0,1.56439442]
[1756996621174,0.00034102,110280.0,110270.0,1.93767706]
[1756996622399,0.00034102,110280.0,110270.0,1.78163706]
[1756996622709,0.00034102,110280.0,110270.0,1.93767706]
[1756996623969,0.00034102,110280.0,110270.0,1.19111178]
[1756996624181,0.00034102,110280.0,110270.0,1.56439442]
[1756996624666,0.00034102,110280.0,110270.0,1.93767706]
[1756996626672,0.00034102,110280.0,110270.0,1.95861588]
[1756996627664,0.00034102,110280.0,110270.0,1.80257588]
[1756996627874,0.00034102,110280.0,110270.0,1.95861588]
[1756996629254,0.00034102,110280.0,110270.0,1.80257588]
[1756996629453,0.00034102,110280.0,110270.0,0.63143898]
[1756996629856,0.00232102,110280.0,110270.0,0.82072162]
[1756996630099,0.00232102,110280.0,110270.0,0.66472162]
[1756996630302,0.18367756,110280.0,110270.0,0.013]
[1756996630561,0.18502756,110280.0,110270.0,0.35037299]
[1756996630776,0.18502756,110280.0,110270.0,0.509]
[1756996631099,0.18502756,110280.0,110270.0,0.163]
[1756996631100,0.5583102,110280.0,110270.0,0.163]
[1756996631297,0.59543744,110280.0,110270.0,0.163]
[1756996631591,0.2221548,110280.0,110270.0,0.012]
[1756996631814,0.2221548,110280.0,110270.0,0.005]
[1756996632023,0.2221548,110280.0,110270.0,0.011]
[1756996632224,0.2221548,110280.0,110270.0,0.005]
[1756996632407,0.2208048,110280.0,110270.0,0.18637299]
[1756996632629,0.2221548,110280.0,110270.0,0.003]
[1756996632971,0.2208048,110280.0,110270.0,0.006]
[1756996633182,0.2208048,110280.0,110270.0,0.18737299]
[1756996634279,0.2208048,110280.0,110270.0,0.006]
[1756996635157,0.2208048,110280.0,110270.0,0.18737299]
[1756996635592,0.18367756,110280.0,110270.0,0.18737299]
[1756996635810,0.18367756,110280.0,110270.0,0.19236299]
[1756996635962,0.18367756,110280.0,110270.0,0.18737299]
[1756996636167,0.00034102,110280.0,110270.0,0.19236299]
[1756996636721,0.00034102,110280.0,110270.0,1.22984074]
[1756996637629,0.00034102,110280.0,110270.0,0.62427898]
[1756996637834,0.00034102,110280.0,110270.0,1.22984074]
[1756996640463,0.00034102,110280.0,110270.0,0.62427898]
[1756996640699,0.00235102,110280.0,110270.0,0.62134898]
[1756996640922,0.00235102,110280.0,110270.0,0.77734898]
[1756996641142,0.00235102,110280.0,110270.0,0.78027898]
[1756996641372,0.00034102,110280.0,110270.0,0.78027898]
[1756996641593,0.00034102,110280.0,110270.0,1.38584074]
[1756996642491,0.00034102,110280.0,110270.0,0.78027898]
[1756996642492,0.00232102,110280.0,110270.0,0.78027898]
[1756996642711,0.00232102,110280.0,110270.0,0.77528898]
[1756996642933,0.00232102,110280.0,110270.0,0.78027898]
[1756996643608,0.00034102,110280.0,110270.0,0.78027898]
[1756996645122,0.00235102,110280.0,110270.0,0.78027898]
[1756996645751,0.00235102,110280.0,110270.0,0.62427898]
[1756996645892,0.18370756,110280.0,110270.0,0.68337299]
[1756996646945,0.00235102,110280.0,110270.0,0.68836299]
[1756996647457,0.18134208,110290.0,110280.0,0.52135654]
[1756996647664,0.18335208,110290.0,110280.0,0.52135654]
[1756996647981,0.18335208,110290.0,110280.0,0.34]
[1756996648272,0.00201,110290.0,110280.0,0.34499]
[1756996648520,0.1833501,110290.0,110280.0,0.52634654]
[1756996648727,0.1813401,110290.0,110280.0,0.34]
[1756996648931,0.1813401,110290.0,110280.0,0.52135654]
[1756996649112,0.1813401,110290.0,110280.0,0.52335654]
[1756996649314,0.1813401,110290.0,110280.0,0.52535654]
[1756996649749,0.1813401,110290.0,110280.0,0.344]
[1756996649963,0.78690186,110290.0,110280.0,0.344]
[1756996650175,0.87881785,110290.0,110280.0,0.004]
[1756996650531,1.03481785,110290.0,110280.0,0.004]
[1756996650817,0.42925609,110290.0,110280.0,0.004]
[1756996652236,0.27325609,110290.0,110280.0,0.004]
[1756996652874,0.1813401,110290.0,110280.0,0.18828654]
[1756996653082,0.1813401,110290.0,110280.0,0.19034654]
[1756996653327,0.14885303,110300.0,110280.0,0.19034654]
[1756996653653,0.1813401,110290.0,110280.0,0.53034654]
[1756996653861,0.24076902,110300.0,110280.0,0.53034654]
[1756996654048,0.21760871,110300.0,110290.0,0.3402301]
[1756996654263,0.21760871,110300.0,110290.0,0.3422901]
[1756996654459,0.21760871,110300.0,110290.0,0.16095]
[1756996654662,0.21760871,110300.0,110290.0,0.15596]
[1756996655680,0.21760871,110300.0,110280.0,0.564389]
[1756996655884,0.21760871,110300.0,110290.0,0.16095]
[1756996656091,0.21760871,110300.0,110290.0,0.3422901]
[1756996656705,0.21760871,110300.0,110290.0,0.3432901]
[1756996656914,0.19057341,110310.0,110290.0,0.3432901]
[1756996657111,0.19057341,110310.0,110300.0,0.18425366]
[1756996657318,0.18150805,110310.0,110300.0,0.18631366]
[1756996657550,0.0002,110310.0,110300.0,1.13166962]
[1756996657710,0.0002,110310.0,110300.0,1.22358561]
[1756996658123,0.0002,110310.0,110300.0,0.34293]
[1756996658330,0.15498722,110310.0,110300.0,0.67728366]
[1756996658667,0.15498722,110310.0,110300.0,0.68227366]
[1756996659638,0.15498722,110310.0,110300.0,0.346]
[1756996659840,0.15498722,110310.0,110300.0,0.68328366]
[1756996660193,0.15498722,110310.0,110300.0,0.50498]
[1756996660605,0.15498722,110310.0,110300.0,0.346]
[1756996660867,0.15498722,110310.0,110300.0,0.50196]
[1756996661704,0.15182031,110310.0,110300.0,0.346]
[1756996661933,0.30778031,110310.0,110300.0,0.006]
[1756996662402,0.91313627,110310.0,110300.0,0.006]
[1756996662620,1.00505226,110310.0,110300.0,0.006]
[1756996662913,1.00505226,110310.0,110290.0,0.15596]
[1756996662914,0.18132366,110300.0,110290.0,0.15596]
[1756996663720,0.18132366,110300.0,110290.0,0.15898]
[1756996663926,0.1813401,110290.0,110280.0,0.221459]
[1756996664111,0.1813401,110290.0,110280.0,0.53606246]
[1756996664472,0.1813401,110290.0,110280.0,0.38010246]
[1756996664874,0.1813401,110290.0,110280.0,0.53606246]
[1756996665866,0.1813401,110290.0,110280.0,0.53906246]
[1756996666048,0.1813401,110290.0,110280.0,0.54206246]
[1756996666257,0.1813401,110290.0,110280.0,0.39110246]
[1756996666452,0.1813401,110290.0,110280.0,0.54706246]
[1756996666593,0.18132366,110300.0,110280.0,0.728419]
[1756996666794,0.1813401,110290.0,110280.0,0.728419]
[1756996666996,0.18132366,110300.0,110280.0,0.572459]
[1756996667196,0.18132366,110300.0,110290.0,0.1843601]
[1756996667399,0.16088567,110310.0,110290.0,0.1843601]
[1756996667642,0.16088567,110310.0,110300.0,0.16096]
[1756996669499,0.16088567,110310.0,110300.0,0.16196]
[1756996670763,0.16088567,110310.0,110300.0,0.16296]
[1756996671225,0.76624163,110310.0,110300.0,0.15796]
[1756996671435,0.16088567,110310.0,110300.0,0.15796]
[1756996671613,0.16088567,110310.0,110300.0,0.002]
[1756996671614,0.30721652,110310.0,110300.0,0.002]
[1756996671862,0.64176649,110310.0,110300.0,0.002]
[1756996672507,0.25280166,110310.0,110300.0,0.002]
[1756996672898,0.64176649,110310.0,110300.0,0.002]
[1756996673353,0.25280166,110310.0,110300.0,0.002]
[1756996673566,0.64176649,110310.0,110300.0,0.002]
[1756996673787,0.25280166,110310.0,110300.0,0.002]
[1756996673993,0.64176649,110310.0,110300.0,0.002]
[1756996675251,0.25280166,110310.0,110300.0,0.002]
[1756996675475,0.78211672,110310.0,110300.0,0.002]
[1756996675706,0.40876166,110310.0,110300.0,0.002]
[1756996675914,0.78211672,110310.0,110300.0,0.002]
[1756996676391,0.78211672,110310.0,110300.0,0.007]
[1756996676961,0.31684567,110310.0,110300.0,0.007]
[1756996677526,0.31684567,110310.0,110300.0,0.00502]
[1756996677726,0.88940194,110310.0,110300.0,0.002]
[1756996677883,0.79765158,110310.0,110300.0,0.002]
[1756996678062,0.25280166,110310.0,110300.0,0.002]
[1756996678262,0.16088567,110310.0,110300.0,0.007]
[1756996680816,0.7630883,110320.0,110300.0,0.18832366]
[1756996681043,0.00014097,110320.0,110310.0,0.18432722]
[1756996681259,0.00014097,110320.0,110310.0,0.18630722]
[1756996681669,0.18143176,110320.0,110310.0,0.18630722]
[1756996681846,0.18130722,110310.0,110300.0,0.52434366]
[1756996682053,0.18143176,110320.0,110300.0,0.67728366]
[1756996682296,0.18143176,110320.0,110310.0,0.18130722]
[1756996682694,0.18143176,110320.0,110310.0,0.18830722]
[1756996683100,0.18143176,110320.0,110310.0,0.18630722]
[1756996684017,0.00014097,110320.0,110310.0,0.18630722]
[1756996684707,0.00014097,110320.0,110310.0,0.18830722]
[1756996684937,0.18143176,110320.0,110310.0,0.18830722]
[1756996685168,0.18143176,110320.0,110310.0,0.19030722]
[1756996685388,0.18143176,110320.0,110310.0,0.16492]
[1756996685827,0.18143176,110320.0,110310.0,0.34622722]
[1756996686703,0.18143176,110320.0,110310.0,0.009]
[1756996686926,0.18143176,110320.0,110310.0,0.16492]
[1756996687153,0.18143176,110320.0,110310.0,0.34849356]
[1756996687371,0.18143176,110320.0,110310.0,0.34622722]
[1756996688506,0.00014097,110320.0,110310.0,0.34622722]
[1756996688728,0.00014097,110320.0,110310.0,0.73511714]
[1756996689147,0.00014097,110320.0,110310.0,0.34622722]
[1756996690197,0.00014097,110320.0,110310.0,0.38764209]
[1756996690406,0.00014097,110320.0,110310.0,1.208448]
[1756996691919,0.027358,110340.0,110320.0,0.18129079]
[1756996692176,0.027358,110340.0,110330.0,0.34236435]
[1756996692383,0.18125793,110340.0,110330.0,0.34236435]
[1756996693019,0.21200314,110340.0,110330.0,0.34236435]
[1756996693146,0.21200314,110340.0,110330.0,0.16109]
[1756996694159,0.21200314,110340.0,110330.0,0.16409]
[1756996694770,0.21200314,110340.0,110330.0,0.00817]
[1756996694980,0.21200314,110340.0,110330.0,0.16409]
[1756996695596,0.21200314,110340.0,110330.0,0.34836435]
[1756996696407,0.21200314,110340.0,110330.0,0.16709]
[1756996696615,0.21200314,110340.0,110330.0,0.34836435]
[1756996697043,0.21200314,110340.0,110330.0,0.16709]
[1756996697600,0.58511356,110340.0,110330.0,0.16709]
[1756996697802,0.21200314,110340.0,110330.0,0.16709]
[1756996698005,0.58511356,110340.0,110330.0,0.16709]
[1756996698488,0.21200314,110340.0,110330.0,0.16709]
[1756996699004,0.58511356,110340.0,110330.0,0.16705]
[1756996699158,0.21200314,110340.0,110330.0,0.34832435]
[1756996699347,0.58511356,110340.0,110330.0,0.34832435]
[1756996699753,0.21200314,110340.0,110330.0,0.34832435]
[1756996699959,0.18125793,110340.0,110330.0,0.72143477]
[1756996700288,0.18125793,110340.0,110330.0,0.34832435]
[1756996700444,0.56368785,110350.0,110330.0,0.34832435]
[1756996700445,0.19057743,110350.0,110330.0,0.34832435]
[1756996700650,0.18125793,110340.0,110330.0,0.72143477]
[1756996701272,0.18125793,110340.0,110330.0,0.34532435]
[1756996701942,0.0002,110350.0,110340.0,0.18125793]
[1756996702147,0.1814415,110350.0,110340.0,0.18642793]
[1756996702298,0.0002,110350.0,110340.0,0.55953835]
[1756996703336,0.1814415,110350.0,110340.0,0.19042793]
[1756996703538,0.55455192,110350.0,110340.0,0.16505]
[1756996703772,0.1814415,110350.0,110340.0,0.16303]
[1756996704412,0.1814415,110350.0,110340.0,0.16505]
[1756996705063,0.1814415,110350.0,110340.0,0.16303]
[1756996705470,0.1814415,110350.0,110340.0,0.34630793]
[1756996705670,0.2128561,110350.0,110340.0,0.34630793]
[1756996706528,0.2128561,110350.0,110340.0,0.16505]
[1756996706690,0.58596652,110350.0,110340.0,0.16505]
[1756996706915,0.58596652,110350.0,110340.0,0.16303]
[1756996707117,0.58596652,110350.0,110340.0,0.16505]
[1756996707666,0.2128561,110350.0,110340.0,0.34630793]
[1756996707853,0.1814415,110350.0,110340.0,0.34630793]
[1756996708189,0.1814415,110350.0,110340.0,0.00917]
[1756996708412,0.1814415,110350.0,110340.0,0.16505]
[1756996708704,0.1814415,110350.0,110340.0,0.34630793]
[1756996708898,0.21239502,110350.0,110340.0,0.16505]
[1756996709112,0.21239502,110350.0,110340.0,0.34630793]
[1756996710374,0.21239502,110350.0,110340.0,0.16505]
[1756996711357,0.58550544,110350.0,110340.0,0.16505]
[1756996711757,0.21239502,110350.0,110340.0,0.16505]
[1756996711963,0.58550544,110350.0,110340.0,0.16505]
[1756996712364,0.21239502,110350.0,110340.0,0.34630793]
[1756996712566,0.58550544,110350.0,110340.0,0.34630793]
[1756996712764,0.58550544,110350.0,110340.0,0.16505]
[1756996713011,0.21239502,110350.0,110340.0,0.34630793]
[1756996713815,0.21239502,110350.0,110340.0,0.19042793]
[1756996714017,0.21239502,110350.0,110340.0,0.34626793]
[1756996714611,0.0002,110350.0,110340.0,0.71937835]
[1756996714814,0.1814415,110350.0,110340.0,0.71937835]
[1756996715022,0.0002,110350.0,110340.0,1.05937835]
[1756996715429,0.1814415,110350.0,110340.0,1.05937835]
[1756996715644,0.21304947,110350.0,110340.0,1.05937835]
[1756996715823,0.1814415,110350.0,110340.0,0.68626793]
[1756996716055,0.1814415,110350.0,110340.0,1.05937835]
[1756996716236,0.0002,110350.0,110340.0,1.05937835]
[1756996717059,0.0002,110350.0,110340.0,1.43248877]
[1756996717709,0.0002,110350.0,110340.0,1.52440476]
[1756996718681,0.0002,110350.0,110340.0,1.52240476]
[1756996718889,0.0002,110350.0,110340.0,0.99145434]
[1756996719102,0.1814415,110350.0,110340.0,0.50497]
[1756996719301,0.1814415,110350.0,110340.0,0.68422793]
[1756996719507,0.1814415,110350.0,110340.0,0.38766714]
[1756996719710,0.55455192,110350.0,110340.0,0.38866714]
[1756996719910,0.55455192,110350.0,110340.0,0.38664714]
[1756996720089,0.1814415,110350.0,110340.0,0.54544714]
[1756996720506,0.55455192,110350.0,110340.0,0.54544714]
[1756996720713,0.55455192,110350.0,110340.0,0.72670507]
[1756996721055,0.55455192,110350.0,110340.0,0.72872507]
[1756996721327,0.1814415,110350.0,110340.0,0.72872507]
[1756996721537,0.55455192,110350.0,110340.0,0.72872507]
[1756996721916,0.55455192,110350.0,110340.0,0.54746714]
[1756996722322,0.1810415,110350.0,110340.0,0.54746714]
[1756996722530,0.55415192,110350.0,110340.0,0.54746714]
[1756996723301,0.55415192,110350.0,110340.0,0.72872507]
[1756996723546,0.1812415,110350.0,110340.0,0.72872507]
[1756996725335,0.1812415,110350.0,110340.0,1.10183549]
[1756996725533,0.1812415,110350.0,110340.0,0.72872507]
[1756996726192,0.18122527,110360.0,110340.0,1.10183549]
[1756996726414,0.55447663,110360.0,110350.0,0.00325]
[1756996727662,0.18136621,110360.0,110350.0,0.00325]
[1756996727858,0.55447663,110360.0,110350.0,0.00325]
[1756996728065,0.18136621,110360.0,110350.0,0.00525]
[1756996728640,0.55447663,110360.0,110350.0,0.00525]
[1756996728865,0.37325136,110360.0,110350.0,0.1885115]
[1756996729073,0.00014094,110360.0,110350.0,0.71738192]
[1756996729635,0.00014094,110360.0,110350.0,0.71938192]
[1756996730169,0.18136602,110360.0,110350.0,0.3462715]
[1756996730337,0.18136602,110360.0,110350.0,0.71938192]
[1756996731127,0.59653796,110360.0,110350.0,0.004]
[1756996731329,0.55447644,110360.0,110350.0,0.15976]
[1756996731537,0.18136602,110360.0,110350.0,0.15976]
[1756996731748,0.18136602,110360.0,110350.0,0.16503]
[1756996732280,0.18136602,110360.0,110350.0,0.16301]
[1756996732915,0.18136602,110360.0,110350.0,0.3462715]
[1756996734036,0.18136602,110360.0,110350.0,0.16503]
[1756996734636,0.18136602,110360.0,110350.0,0.00927]
[1756996734840,0.18136602,110360.0,110350.0,0.16301]
[1756996735155,0.17919252,110360.0,110350.0,0.16297]
[1756996735360,0.55221331,110360.0,110350.0,0.004]
[1756996735730,0.55221331,110360.0,110350.0,0.15972]
[1756996736130,0.17919252,110360.0,110350.0,0.16297]
[1756996736384,0.55221331,110360.0,110350.0,0.16297]
[1756996736851,0.55221331,110360.0,110350.0,0.15972]
[1756996737051,0.55221331,110360.0,110350.0,0.16499]
[1756996737227,0.55221331,110360.0,110350.0,0.00927]
[1756996737432,0.55221331,110360.0,110350.0,0.16499]
[1756996738021,0.17919252,110360.0,110350.0,0.00927]
[1756996738219,0.17919252,110360.0,110350.0,0.004]
[1756996738419,0.17919252,110360.0,110350.0,0.16297]
[1756996739170,0.17919252,110360.0,110350.0,0.16499]
[1756996739372,0.55221331,110360.0,110350.0,0.16499]
[1756996740302,0.17919252,110360.0,110350.0,0.16499]
[1756996740713,0.17919252,110360.0,110350.0,0.3462315]
[1756996740863,0.23924922,110370.0,110350.0,0.3462315]
[1756996741072,0.24771756,110370.0,110360.0,0.00325]
[1756996741280,0.24771756,110370.0,110360.0,0.18649508]
[1756996741476,0.24759511,110370.0,110360.0,0.18649508]
[1756996741713,0.21188993,110370.0,110360.0,0.18649508]
[1756996742496,0.21188993,110370.0,110360.0,0.18749508]
[1756996743537,0.21758026,110380.0,110360.0,0.56051587]
[1756996743758,0.2169889,110380.0,110370.0,0.34017866]
[1756996743965,0.2169889,110380.0,110370.0,0.16099]
[1756996744191,0.2169889,110380.0,110370.0,0.15897]
[1756996744455,0.18120866,110370.0,110360.0,0.18548962]
[1756996744661,0.18120866,110370.0,110360.0,0.33996431]
[1756996744865,0.18120866,110370.0,110360.0,0.33896431]
[1756996745063,0.18120866,110370.0,110360.0,0.34221431]
[1756996745889,0.05872562,110380.0,110370.0,0.18120866]
[1756996746086,0.22115144,110380.0,110370.0,0.18647866]
[1756996746311,0.18119224,110380.0,110370.0,0.55949945]
[1756996746646,0.24962504,110390.0,110370.0,0.18647866]
[1756996746781,0.25809325,110390.0,110380.0,0.15893]
[1756996746996,0.22173026,110390.0,110380.0,0.34214224]
[1756996747590,0.22173026,110390.0,110380.0,0.18646224]
[1756996747804,0.22173026,110390.0,110380.0,0.16095]
[1756996748002,0.22173026,110390.0,110380.0,0.16195]
[1756996748261,0.04055443,110390.0,110380.0,0.34314224]
[1756996748494,0.22173026,110390.0,110380.0,0.34314224]
[1756996748922,0.22173026,110390.0,110380.0,0.34414224]
[1756996749144,0.21326205,110390.0,110380.0,0.34414224]
[1756996749764,0.79077882,110400.0,110380.0,0.34414224]
[1756996749963,0.89162813,110400.0,110390.0,0.00298]
[1756996750169,0.51860734,110400.0,110390.0,0.00499]
[1756996750372,0.39040347,110400.0,110390.0,0.00499]
[1756996750971,0.18117583,110390.0,110380.0,0.00398]
[1756996751195,0.55419662,110390.0,110380.0,0.15862]
[1756996751396,0.18117583,110390.0,110380.0,0.15862]
[1756996751607,0.18119224,110380.0,110370.0,0.38458463]
[1756996751809,0.55421303,110380.0,110370.0,0.00298]
[1756996752068,0.55421303,110380.0,110370.0,0.15862]
[1756996752268,0.55421303,110380.0,110370.0,0.16063]
[1756996752656,0.18119224,110380.0,110370.0,0.16063]
[1756996753033,0.73567204,110390.0,110370.0,0.16263]
[1756996753241,0.18119224,110380.0,110370.0,0.16263]
[1756996753687,0.18119224,110380.0,110370.0,0.34383866]
[1756996753893,0.18119224,110380.0,110370.0,0.16263]
[1756996754286,0.18119224,110380.0,110370.0,0.00599]
[1756996754735,0.55421303,110380.0,110370.0,0.00398]
[1756996754953,0.18119224,110380.0,110370.0,0.16063]
[1756996755149,0.55421303,110380.0,110370.0,0.16263]
[1756996755369,0.18119224,110380.0,110370.0,0.00699]
[1756996755603,0.55421303,110380.0,110370.0,0.004]